fUSD/lending_fUSD_20240914
["ID","MTS","AMOUNT","RATE_DAILY","PERIOD"]
[338119658,1726284658957,-500.0,0.00014973,2]
[338119661,1726284658969,-150.0,0.00014973,2]
[338119662,1726284658979,-150.0,0.00014982,2]
[338119664,1726284658992,-3103.0,0.00014986,2]
[338119666,1726284659004,-803.0,0.00014986,2]
[338119669,1726284659017,-183.55761999,0.00014986,2]
[338119671,1726284659029,-500.0,0.00014988,2]
[338119673,1726284659041,-500.0,0.00014988,2]
[338119675,1726284659051,-500.0,0.00014988,2]
[338119677,1726284659061,-500.0,0.00014988,2]
[338119679,1726284659073,-253.09193251,0.00014988,2]
[338119681,1726284659084,-500.0,0.00014988,2]
[338119683,1726284659095,-500.0,0.00014988,2]
[338119685,1726284659106,-540.97,0.00014988,2]
[338119687,1726284659118,-500.0,0.00014988,2]
[338119689,1726284659129,-500.0,0.00014988,2]
[338119691,1726284659140,-500.0,0.00014988,2]
[338119693,1726284659151,-500.0,0.00014988,2]
[338119695,1726284659162,-557.06,0.00014988,2]
[338119697,1726284659173,-500.0,0.00014988,2]
[338119699,1726284659183,-566.63,0.00014988,2]
[338119701,1726284659195,-500.0,0.00014988,2]
[338119703,1726284659207,-506.24,0.00014988,2]
[338119705,1726284659219,-500.13690872,0.00014988,2]
[338119707,1726284659231,-612.53,0.00014988,2]
[338119709,1726284659242,-317.2076369,0.00014988,2]
[338119711,1726284659253,-500.0,0.00014988,2]
[338119714,1726284659265,-500.0,0.00014988,2]
[338119715,1726284659276,-500.0,0.00014988,2]
[338119717,1726284659287,-500.0,0.00014988,2]
[338119720,1726284659299,-722.73,0.00014988,2]
[338119722,1726284659310,-627.02,0.00014988,2]
[338119724,1726284659322,-648.06,0.00014988,2]
[338119726,1726284659335,-500.0,0.00014988,2]
[338119728,1726284659346,-626.1435415,0.00014988,2]
[338119730,1726284659357,-505.21,0.00014988,2]
[338119732,1726284659367,-542.84,0.00014988,2]
[338119734,1726284659377,-564.9,0.00014988,2]
[338119736,1726284659386,-508.6,0.00014988,2]
[338119738,1726284659396,-500.0,0.00014988,2]
[338119740,1726284659406,-323.85166263,0.00014988,2]
[338119742,1726284659417,-595.72,0.00014988,2]
[338119744,1726284659429,-623.93,0.00014988,2]
[338119746,1726284659440,-500.0,0.00014988,2]
[338119748,1726284659452,-500.0,0.00014988,2]
[338119750,1726284659462,-500.0,0.00014988,2]
[338119752,1726284659472,-500.0,0.00014988,2]
[338119754,1726284659482,-500.0,0.00014988,2]
[338119756,1726284659494,-500.0,0.00014988,2]
[338119758,1726284659504,-525.61,0.00014988,2]
[338119760,1726284659516,-500.0,0.00014988,2]
[338119762,1726284659528,-500.0,0.00014988,2]
[338119764,1726284659539,-537.98,0.00014988,2]
[338119766,1726284659549,-2768.54,0.00014989,2]
[338119768,1726284659559,-345.78827009,0.00014989,2]
[338119770,1726284659569,-500.0,0.00014989,2]
[338119772,1726284659578,-500.0,0.00014989,2]
[338119774,1726284659589,-620.63,0.00014989,2]
[338119776,1726284659600,-500.0,0.00014989,2]
[338119778,1726284659609,-500.0,0.00014989,2]
[338119779,1726284659620,-500.0,0.00014989,2]
[338119781,1726284659630,-500.0,0.00014989,2]
[338119783,1726284659640,-577.22,0.00014989,2]
[338119785,1726284659653,-500.0,0.00014989,2]
[338119787,1726284659668,-500.0,0.00014989,2]
[338119789,1726284659678,-500.0,0.00014989,2]
[338119791,1726284659688,-500.0,0.00014989,2]
[338119793,1726284659698,-406.35458838,0.00014989,2]
[338119795,1726284659709,-500.0,0.00014989,2]
[338119797,1726284659719,-500.0,0.00014989,2]
[338119799,1726284659729,-252.4033413,0.00014989,2]
[338119801,1726284659739,-500.0,0.00014989,2]
[338119803,1726284659749,-593.23199707,0.00014989,2]
[338119805,1726284659760,-331.65209256,0.00014989,2]
[338119807,1726284659770,-151.0,0.00014989,2]
[338119809,1726284659780,-500.0,0.00014989,2]
[338119811,1726284659790,-500.0,0.00014989,2]
[338119813,1726284659801,-151.0,0.00014989,2]
[338119815,1726284659811,-500.0,0.00014989,2]
[338119817,1726284659821,-500.0,0.00014989,2]
[338119820,1726284659832,-500.0,0.00014989,2]
[338119822,1726284659843,-151.0,0.00014989,2]
[338119824,1726284659854,-499.60574096,0.00014989,2]
[338119826,1726284659864,-540.97,0.00014989,2]
[338119828,1726284659875,-540.97,0.00014989,2]
[338119830,1726284659885,-500.0,0.00014989,2]
[338119832,1726284659896,-194.39,0.00014989,2]
[338119834,1726284659907,-601.93,0.00014989,2]
[338119836,1726284659917,-601.93,0.00014989,2]
[338119838,1726284659927,-601.93,0.00014989,2]
[338119840,1726284659937,-1293.928013,0.00014989,2]
[338119842,1726284659948,-1293.928013,0.00014989,2]
[338119844,1726284659958,-308.40612,0.00014989,2]
[338119846,1726284659968,-308.40612,0.00014989,2]
[338119848,1726284659979,-500.0,0.00014989,2]
[338119850,1726284659990,-500.0,0.00014989,2]
[338119852,1726284660002,-500.0,0.00014989,2]
[338119854,1726284660013,-1150.67116,0.00014989,2]
[338119857,1726284660024,-349.55647,0.00014989,2]
[338119859,1726284660035,-1150.67116,0.00014989,2]
[338119861,1726284660046,-349.55647,0.00014989,2]
[338119863,1726284660057,-151.0,0.00014989,2]
[338119865,1726284660068,-153.513704,0.00014989,2]
[338119867,1726284660080,-621.73,0.00014989,2]
[338119869,1726284660090,-621.73,0.00014989,2]
[338119871,1726284660101,-621.73,0.00014989,2]
[338119874,1726284660112,-151.0,0.00014989,2]
[338119876,1726284660123,-542.96,0.00014989,2]
[338119878,1726284660134,-542.96,0.00014989,2]
[338119880,1726284660144,-542.96,0.00014989,2]
[338119882,1726284660155,-597.368666,0.00014989,2]
[338119884,1726284660166,-184.739456,0.00014989,2]
[338119886,1726284660176,-597.368666,0.00014989,2]
[338119888,1726284660187,-184.739456,0.00014989,2]
[338119890,1726284660198,-171.215864,0.00014989,2]
[338119892,1726284660209,-171.215864,0.00014989,2]
[338119895,1726284660219,-500.0,0.00014989,2]
[338119897,1726284660228,-151.0,0.00014989,2]
[338119899,1726284660239,-227.2651,0.00014989,2]
[338119901,1726284660249,-227.2651,0.00014989,2]
[338119903,1726284660260,-151.0,0.00014989,2]
[338119905,1726284660270,-151.0,0.00014989,2]
[338119907,1726284660281,-500.0,0.00014989,2]
[338119909,1726284660291,-500.0,0.00014989,2]
[338119911,1726284660301,-400.18561727,0.00014989,2]
[338119913,1726284660311,-500.0,0.00014989,2]
[338119916,1726284660322,-500.0,0.00014989,2]
[338119918,1726284660332,-500.0,0.00014989,2]
[338119920,1726284660342,-500.0,0.00014989,2]
[338119922,1726284660352,-500.0,0.00014989,2]
[338119924,1726284660363,-500.0,0.00014989,2]
[338119926,1726284660373,-500.0,0.00014989,2]
[338119928,1726284660383,-564.96502777,0.00014989,2]
[338119930,1726284660393,-557.06,0.00014989,2]
[338119932,1726284660405,-557.06,0.00014989,2]
[338119934,1726284660415,-151.0,0.00014989,2]
[338119936,1726284660425,-500.0,0.00014989,2]
[338119939,1726284660435,-500.0,0.00014989,2]
[338119941,1726284660446,-500.0,0.00014989,2]
[338119943,1726284660456,-500.0,0.00014989,2]
[338119945,1726284660466,-500.0,0.00014989,2]
[338119947,1726284660476,-216.44467596,0.00014989,2]
[338119949,1726284660486,-566.63,0.00014989,2]
[338119951,1726284660496,-566.63,0.00014989,2]
[338119953,1726284660506,-500.0,0.00014989,2]
[338119955,1726284660516,-500.0,0.00014989,2]
[338119957,1726284660528,-500.0,0.00014989,2]
[338119959,1726284660538,-500.0,0.00014989,2]
[338119961,1726284660548,-506.24,0.00014989,2]
[338119963,1726284660559,-506.24,0.00014989,2]
[338119965,1726284660570,-500.0,0.00014989,2]
[338119968,1726284660580,-500.0,0.00014989,2]
[338119970,1726284660590,-612.53,0.00014989,2]
[338119972,1726284660600,-612.53,0.00014989,2]
[338119974,1726284660611,-500.0,0.00014989,2]
[338119976,1726284660621,-500.0,0.00014989,2]
[338119978,1726284660631,-569.60094963,0.00014989,2]
[338119980,1726284660642,-500.0,0.00014989,2]
[338119982,1726284660653,-228.86765992,0.00014989,2]
[338119984,1726284660663,-500.0,0.00014989,2]
[338119986,1726284660673,-500.0,0.00014989,2]
[338119988,1726284660684,-500.0,0.00014989,2]
[338119991,1726284660695,-500.0,0.00014989,2]
[338119993,1726284660705,-722.73,0.00014989,2]
[338119995,1726284660715,-500.0,0.00014989,2]
[338119997,1726284660725,-500.0,0.00014989,2]
[338119999,1726284660735,-500.0,0.00014989,2]
[338120001,1726284660747,-500.0,0.00014989,2]
[338120003,1726284660758,-627.02,0.00014989,2]
[338120005,1726284660768,-627.02,0.00014989,2]
[338120007,1726284660778,-500.0,0.00014989,2]
[338120009,1726284660788,-500.0,0.00014989,2]
[338120012,1726284660800,-648.06,0.00014989,2]
[338120014,1726284660811,-648.06,0.00014989,2]
[338120016,1726284660821,-500.0,0.00014989,2]
[338120018,1726284660832,-505.21,0.00014989,2]
[338120020,1726284660843,-505.21,0.00014989,2]
[338120022,1726284660855,-542.84,0.00014989,2]
[338120024,1726284660866,-542.84,0.00014989,2]
[338120026,1726284660877,-564.9,0.00014989,2]
[338120029,1726284660888,-508.6,0.00014989,2]
[338120031,1726284660900,-500.0,0.00014989,2]
[338120033,1726284660910,-500.0,0.00014989,2]
[338120035,1726284660921,-500.0,0.00014989,2]
[338120037,1726284660931,-500.0,0.00014989,2]
[338120039,1726284660941,-500.0,0.00014989,2]
[338120041,1726284660951,-500.0,0.00014989,2]
[338120043,1726284660962,-595.72,0.00014989,2]
[338120045,1726284660974,-800.05,0.00014989,2]
[338120047,1726284660985,-800.05,0.00014989,2]
[338120049,1726284661002,-593.38,0.00014989,2]
[338120051,1726284661013,-593.38,0.00014989,2]
[338120053,1726284661023,-623.93,0.00014989,2]
[338120055,1726284661035,-214.63424584,0.00014989,2]
[338120057,1726284661047,-500.0,0.00014989,2]
[338120059,1726284661058,-500.0,0.00014989,2]
[338120061,1726284661069,-500.0,0.00014989,2]
[338120063,1726284661081,-500.0,0.00014989,2]
[338120065,1726284661091,-500.0,0.00014989,2]
[338120067,1726284661101,-500.0,0.00014989,2]
[338120069,1726284661112,-500.0,0.00014989,2]
[338120071,1726284661123,-583.21,0.00014989,2]
[338120073,1726284661134,-500.0,0.00014989,2]
[338120075,1726284661145,-500.0,0.00014989,2]
[338120077,1726284661156,-389.91345198,0.00014989,2]
[338120079,1726284661167,-248.34510199,0.00014989,2]
[338120081,1726284661178,-500.0,0.00014989,2]
[338120083,1726284661188,-500.0,0.00014989,2]
[338120085,1726284661199,-500.0,0.00014989,2]
[338120087,1726284661209,-500.0,0.00014989,2]
[338120089,1726284661220,-500.0,0.00014989,2]
[338120091,1726284661231,-500.0,0.00014989,2]
[338120093,1726284661242,-500.0,0.00014989,2]
[338120095,1726284661253,-525.61,0.00014989,2]
[338120097,1726284661264,-525.61,0.00014989,2]
[338120100,1726284661276,-500.0,0.00014989,2]
[338120129,1726284661556,-500.0,0.00014989,2]
[338120132,1726284661576,-500.0,0.00014989,2]
[338120134,1726284661590,-505.38512129,0.00014989,2]
[338120136,1726284661600,-500.0,0.00014989,2]
[338120138,1726284661610,-500.0,0.00014989,2]
[338120140,1726284661619,-500.0,0.00014989,2]
[338120142,1726284661629,-500.0,0.00014989,2]
[338120144,1726284661638,-537.98,0.00014989,2]
[338120146,1726284661648,-500.0,0.00014989,2]
[338120148,1726284661657,-946.56,0.00014989,2]
[338120149,1726284661666,-946.56,0.00014989,2]
[338120151,1726284661675,-946.56,0.00014989,2]
[338120153,1726284661685,-216.0,0.0001499,2]
[338120155,1726284661694,-208375.08946612,0.0001499,5]
[338120157,1726284661704,-151.0,0.0001499,2]
[338120159,1726284661713,-156.58747,0.0001499,2]
[338120161,1726284661724,-156.58747,0.0001499,2]
[338120163,1726284661733,-236.770301,0.0001499,2]
[338120165,1726284661744,-151.0,0.0001499,2]
[338120167,1726284661753,-155.539601,0.0001499,2]
[338120169,1726284661762,-220.878416,0.0001499,2]
[338120171,1726284661772,-155.539601,0.0001499,2]
[338120173,1726284661781,-223.86168,0.0001499,2]
[338120175,1726284661790,-668.70457,0.0001499,2]
[338120177,1726284661800,-668.70457,0.0001499,2]
[338120178,1726284661809,-456.550804,0.0001499,2]
[338120180,1726284661818,-456.550804,0.0001499,2]
[338120182,1726284661828,-151.0,0.0001499,2]
[338120184,1726284661837,-179.588995,0.0001499,2]
[338120186,1726284661846,-179.588995,0.0001499,2]
[338120188,1726284661857,-249.353237,0.0001499,2]
[338120190,1726284661866,-151.0,0.0001499,2]
[338120192,1726284661876,-151.0,0.0001499,2]
[338120194,1726284661885,-297.468798,0.0001499,2]
[338120196,1726284661895,-151.0,0.0001499,2]
[338120198,1726284661905,-151.0,0.0001499,2]
[338120200,1726284661915,-151.0,0.0001499,2]
[338120202,1726284661924,-151.0,0.0001499,2]
[338120204,1726284661933,-215.839829,0.0001499,2]
[338120205,1726284661942,-215.839829,0.0001499,2]
[338120207,1726284661951,-249.76752,0.0001499,2]
[338120209,1726284661961,-151.354599,0.0001499,2]
[338120211,1726284661970,-151.0,0.0001499,2]
[338120213,1726284661979,-151.0,0.0001499,2]
[338120215,1726284661989,-151.0,0.0001499,2]
[338120216,1726284662001,-151.0,0.0001499,2]
[338120218,1726284662011,-151.0,0.0001499,2]
[338120220,1726284662020,-151.0,0.0001499,2]
[338120222,1726284662029,-151.0,0.0001499,2]
[338120224,1726284662040,-266.299655,0.0001499,2]
[338120226,1726284662049,-266.299655,0.0001499,2]
[338120228,1726284662058,-151.0,0.0001499,2]
[338120230,1726284662068,-180.111314,0.0001499,2]
[338120231,1726284662077,-180.111314,0.0001499,2]
[338120233,1726284662086,-151.0,0.0001499,2]
[338120235,1726284662095,-310.925705,0.0001499,2]
[338120237,1726284662104,-310.925705,0.0001499,2]
[338120239,1726284662113,-177.116607,0.0001499,2]
[338120241,1726284662123,-425.965282,0.0001499,2]
[338120243,1726284662132,-151.0,0.0001499,2]
[338120245,1726284662141,-425.965282,0.0001499,2]
[338120247,1726284662155,-151.0,0.0001499,2]
[338120248,1726284662169,-189.140926,0.0001499,2]
[338120249,1726284662178,-153.006285,0.0001499,2]
[338120250,1726284662187,-153.006285,0.0001499,2]
[338120251,1726284662196,-151.0,0.0001499,2]
[338120252,1726284662206,-263.838747,0.0001499,2]
[338120253,1726284662215,-349.384346,0.0001499,2]
[338120254,1726284662224,-349.384346,0.0001499,2]
[338120255,1726284662233,-311.003686,0.0001499,2]
[338120256,1726284662242,-2047.787641,0.0001499,2]
[338120257,1726284662251,-311.003686,0.0001499,2]
[338120258,1726284662261,-2047.787641,0.0001499,2]
[338120259,1726284662270,-151.0,0.0001499,2]
[338120260,1726284662280,-1286.996557,0.0001499,2]
[338120261,1726284662290,-1286.996557,0.0001499,2]
[338120262,1726284662299,-925.496886,0.0001499,2]
[338120263,1726284662308,-151.0,0.0001499,2]
[338120264,1726284662318,-925.496886,0.0001499,2]
[338120265,1726284662327,-194.13589,0.0001499,2]
[338120266,1726284662337,-164.804985,0.0001499,2]
[338120268,1726284662346,-151.0,0.0001499,2]
[338120270,1726284662356,-194.13589,0.0001499,2]
[338120272,1726284662366,-164.804985,0.0001499,2]
[338120274,1726284662375,-152.327098,0.0001499,2]
[338120276,1726284662385,-152.327098,0.0001499,2]
[338120278,1726284662395,-151.0,0.0001499,2]
[338120280,1726284662412,-151.0,0.0001499,2]
[338120282,1726284662422,-151.0,0.0001499,2]
[338120284,1726284662431,-289.801642,0.0001499,2]
[338120286,1726284662440,-289.801642,0.0001499,2]
[338120288,1726284662450,-268.540131,0.0001499,2]
[338120290,1726284662460,-268.540131,0.0001499,2]
[338120292,1726284662470,-298.767801,0.0001499,2]
[338120294,1726284662479,-203.562752,0.0001499,2]
[338120295,1726284662489,-203.562752,0.0001499,2]
[338120297,1726284662498,-8079.379663,0.0001499,2]
[338120299,1726284662508,-8079.379663,0.0001499,2]
[338120301,1726284662519,-583.145898,0.0001499,2]
[338120303,1726284662529,-263.59346,0.0001499,2]
[338120305,1726284662539,-583.145898,0.0001499,2]
[338120307,1726284662548,-237.2878,0.0001499,2]
[338120309,1726284662558,-263.59346,0.0001499,2]
[338120311,1726284662567,-237.2878,0.0001499,2]
[338120313,1726284662577,-151.0,0.0001499,2]
[338120315,1726284662587,-151.0,0.0001499,2]
[338120317,1726284662597,-151.0,0.0001499,2]
[338120319,1726284662607,-197.200564,0.0001499,2]
[338120321,1726284662617,-197.200564,0.0001499,2]
[338120323,1726284662626,-151.0,0.0001499,2]
[338120325,1726284662637,-1366.10652,0.0001499,2]
[338120327,1726284662647,-248.447576,0.0001499,2]
[338120329,1726284662658,-1366.10652,0.0001499,2]
[338120331,1726284662668,-544.770083,0.0001499,2]
[338120333,1726284662678,-544.770083,0.0001499,2]
[338120335,1726284662687,-2768.54,0.00014998,2]
[338120337,1726284662696,-407.97723994,0.00014998,2]
[338120339,1726284662706,-500.0,0.00014998,2]
[338120341,1726284662716,-620.63,0.00014998,2]
[338120343,1726284662730,-520.54407495,0.00014998,2]
[338120345,1726284662739,-577.22,0.00014998,2]
[338120347,1726284662749,-500.0,0.00014998,2]
[338120349,1726284662759,-500.0,0.00014998,2]
[338120351,1726284662768,-237.29056277,0.00014998,2]
[338120353,1726284662777,-500.0,0.00014998,2]
[338120355,1726284662787,-500.0,0.00014998,2]
[338120357,1726284662796,-618.916932,0.00014998,2]
[338120359,1726284662806,-540.97,0.00014998,2]
[338120361,1726284662815,-500.0,0.00014998,2]
[338120363,1726284662825,-500.0,0.00014998,2]
[338120365,1726284662834,-500.0,0.00014998,2]
[338120367,1726284662844,-500.0,0.00014998,2]
[338120368,1726284662853,-500.0,0.00014998,2]
[338120370,1726284662864,-557.06,0.00014998,2]
[338120372,1726284662874,-500.0,0.00014998,2]
[338120374,1726284662884,-500.0,0.00014998,2]
[338120376,1726284662894,-566.63,0.00014998,2]
[338120378,1726284662905,-500.0,0.00014998,2]
[338120380,1726284662914,-500.0,0.00014998,2]
[338120382,1726284662923,-506.24,0.00014998,2]
[338120384,1726284662932,-500.0,0.00014998,2]
[338120386,1726284662942,-612.53,0.00014998,2]
[338120387,1726284662951,-500.0,0.00014998,2]
[338120389,1726284662961,-500.0,0.00014998,2]
[338120391,1726284662971,-597.33553401,0.00014998,2]
[338120393,1726284662980,-500.0,0.00014998,2]
[338120395,1726284662990,-722.73,0.00014998,2]
[338120397,1726284663002,-500.0,0.00014998,2]
[338120399,1726284663011,-627.02,0.00014998,2]
[338120401,1726284663020,-500.0,0.00014998,2]
[338120403,1726284663030,-648.06,0.00014998,2]
[338120405,1726284663041,-188.90512346,0.00014998,2]
[338120407,1726284663051,-505.21,0.00014998,2]
[338120409,1726284663061,-542.84,0.00014998,2]
[338120411,1726284663072,-564.9,0.00014998,2]
[338120413,1726284663082,-508.6,0.00014998,2]
[338120415,1726284663092,-500.0,0.00014998,2]
[338120417,1726284663101,-500.0,0.00014998,2]
[338120419,1726284663110,-500.0,0.00014998,2]
[338120421,1726284663120,-595.72,0.00014998,2]
[338120423,1726284663130,-800.05,0.00014998,2]
[338120425,1726284663141,-593.38,0.00014998,2]
[338120427,1726284663153,-623.93,0.00014998,2]
[338120429,1726284663163,-500.0,0.00014998,2]
[338120431,1726284663173,-500.0,0.00014998,2]
[338120433,1726284663182,-500.0,0.00014998,2]
[338120435,1726284663192,-500.0,0.00014998,2]
[338120437,1726284663202,-500.0,0.00014998,2]
[338120439,1726284663213,-583.21,0.00014998,2]
[338120441,1726284663222,-500.0,0.00014998,2]
[338120442,1726284663232,-500.0,0.00014998,2]
[338120444,1726284663241,-150.58785474,0.00014998,2]
[338120446,1726284663251,-500.0,0.00014998,2]
[338120448,1726284663261,-500.0,0.00014998,2]
[338120450,1726284663272,-500.0,0.00014998,2]
[338120452,1726284663281,-500.0,0.00014998,2]
[338120454,1726284663291,-525.61,0.00014998,2]
[338120456,1726284663301,-646.10665908,0.00014998,2]
[338120458,1726284663311,-500.0,0.00014998,2]
[338120460,1726284663321,-500.0,0.00014998,2]
[338120462,1726284663331,-537.98,0.00014998,2]
[338120464,1726284663340,-500.0,0.00014998,2]
[338120466,1726284663350,-2129.61031235,0.00014999,2]
[338120467,1726284663359,-2708.37133127,0.00014999,2]
[338120469,1726284663369,-2768.54,0.00014999,2]
[338120471,1726284663379,-2768.54,0.00014999,2]
[338120473,1726284663389,-2768.54,0.00014999,2]
[338120475,1726284663402,-2768.54,0.00014999,2]
[338120477,1726284663413,-2768.54,0.00014999,2]
[338120479,1726284663423,-2768.54,0.00014999,2]
[338120481,1726284663433,-2768.54,0.00014999,2]
[338120483,1726284663443,-2768.54,0.00014999,2]
[338120485,1726284663453,-2768.54,0.00014999,2]
[338120487,1726284663463,-2768.54,0.00014999,2]
[338120489,1726284663472,-2768.54,0.00014999,2]
[338120491,1726284663483,-2768.54,0.00014999,2]
[338120493,1726284663493,-2768.54,0.00014999,2]
[338120495,1726284663503,-2768.54,0.00014999,2]
[338120497,1726284663512,-2768.5599123,0.00014999,2]
[338120499,1726284663524,-500.0,0.00014999,2]
[338120501,1726284663534,-256.46404826,0.00014999,2]
[338120503,1726284663544,-620.63,0.00014999,2]
[338120505,1726284663553,-620.63,0.00014999,2]
[338120507,1726284663563,-620.63,0.00014999,2]
[338120509,1726284663572,-620.63,0.00014999,2]
[338120511,1726284663582,-620.63,0.00014999,2]
[338120512,1726284663592,-620.63,0.00014999,2]
[338120514,1726284663602,-620.63,0.00014999,2]
[338120516,1726284663612,-620.63,0.00014999,2]
[338120518,1726284663622,-620.63,0.00014999,2]
[338120520,1726284663631,-620.63,0.00014999,2]
[338120522,1726284663641,-620.63,0.00014999,2]
[338120524,1726284663653,-620.63,0.00014999,2]
[338120526,1726284663663,-620.63,0.00014999,2]
[338120528,1726284663672,-620.63,0.00014999,2]
[338120530,1726284663682,-620.71472647,0.00014999,2]
[338120532,1726284663692,-500.0,0.00014999,2]
[338120534,1726284663701,-500.0,0.00014999,2]
[338120536,1726284663711,-500.0,0.00014999,2]
[338120538,1726284663721,-500.0,0.00014999,2]
[338120540,1726284663730,-500.0,0.00014999,2]
[338120542,1726284663740,-577.22,0.00014999,2]
[338120544,1726284663750,-500.0,0.00014999,2]
[338120546,1726284663761,-577.22,0.00014999,2]
[338120548,1726284663770,-500.0,0.00014999,2]
[338120550,1726284663780,-577.22,0.00014999,2]
[338120552,1726284663789,-500.0,0.00014999,2]
[338120554,1726284663799,-500.0,0.00014999,2]
[338120556,1726284663808,-577.22,0.00014999,2]
[338120558,1726284663817,-500.0,0.00014999,2]
[338120560,1726284663826,-577.22,0.00014999,2]
[338120562,1726284663836,-500.0,0.00014999,2]
[338120563,1726284663845,-577.22,0.00014999,2]
[338120565,1726284663856,-578.3457762,0.00014999,2]
[338120567,1726284663865,-577.22,0.00014999,2]
[338120569,1726284663875,-577.22,0.00014999,2]
[338120571,1726284663886,-577.22,0.00014999,2]
[338120573,1726284663896,-577.22,0.00014999,2]
[338120575,1726284663907,-577.22,0.00014999,2]
[338120577,1726284663917,-577.22,0.00014999,2]
[338120579,1726284663927,-577.22,0.00014999,2]
[338120581,1726284663938,-577.22,0.00014999,2]
[338120583,1726284663947,-577.31550327,0.00014999,2]
[338120585,1726284663958,-500.0,0.00014999,2]
[338120587,1726284663967,-500.0,0.00014999,2]
[338120589,1726284663977,-500.0,0.00014999,2]
[338120591,1726284663987,-500.0,0.00014999,2]
[338120593,1726284664003,-500.0,0.00014999,2]
[338120595,1726284664013,-500.0,0.00014999,2]
[338120597,1726284664022,-500.0,0.00014999,2]
[338120599,1726284664031,-308.10418694,0.00014999,2]
[338120601,1726284664043,-500.0,0.00014999,2]
[338120603,1726284664052,-500.0,0.00014999,2]
[338120605,1726284664062,-460.58970867,0.00014999,2]
[338120607,1726284664074,-500.0,0.00014999,2]
[338120609,1726284664084,-500.0,0.00014999,2]
[338120611,1726284664093,-500.0,0.00014999,2]
[338120613,1726284664103,-590.53,0.00014999,2]
[338120615,1726284664113,-164.804985,0.00014999,2]
[338120617,1726284664122,-500.0,0.00014999,2]
[338120619,1726284664133,-151.0,0.00014999,2]
[338120621,1726284664142,-500.0,0.00014999,2]
[338120623,1726284664155,-500.0,0.00014999,2]
[338120625,1726284664165,-500.0,0.00014999,2]
[338120627,1726284664176,-500.0,0.00014999,2]
[338120629,1726284664185,-500.0,0.00014999,2]
[338120631,1726284664196,-500.0,0.00014999,2]
[338120632,1726284664206,-500.0,0.00014999,2]
[338120634,1726284664216,-515.8271392,0.00014999,2]
[338120636,1726284664225,-164.804985,0.00014999,2]
[338120638,1726284664235,-151.0,0.00014999,2]
[338120640,1726284664245,-151.0,0.00014999,2]
[338120642,1726284664254,-205.516526,0.00014999,2]
[338120644,1726284664263,-289.801642,0.00014999,2]
[338120646,1726284664273,-289.801642,0.00014999,2]
[338120648,1726284664283,-268.540131,0.00014999,2]
[338120650,1726284664292,-268.540131,0.00014999,2]
[338120652,1726284664302,-151.0,0.00014999,2]
[338120654,1726284664311,-151.0,0.00014999,2]
[338120656,1726284664321,-544.65999147,0.00014999,2]
[338120658,1726284664331,-151.0,0.00014999,2]
[338120660,1726284664341,-540.97,0.00014999,2]
[338120662,1726284664350,-540.97,0.00014999,2]
[338120664,1726284664359,-540.97,0.00014999,2]